bitfinex-derivatives/quotes_BTCF0:USTF0_20250130
["timestamp","ask_amount","ask_price","bid_price","bid_amount"]
[1738257639604,0.82996098,105450.0,105440.0,0.043]
[1738257640011,0.80184098,105450.0,105440.0,0.043]
[1738257640309,0.82996098,105450.0,105440.0,0.043]
[1738257641907,0.82988098,105450.0,105440.0,0.043]
[1738257642312,0.68876213,105450.0,105440.0,0.11105013]
[1738257642813,0.68876213,105450.0,105440.0,0.043]
[1738257643315,0.68876213,105450.0,105440.0,0.001]
[1738257643614,0.73136213,105450.0,105440.0,0.001]
[1738257644416,0.70332213,105450.0,105440.0,0.001]
[1738257644718,0.73128213,105450.0,105440.0,0.001]
[1738257646416,0.73128213,105450.0,105440.0,0.06905013]
[1738257646913,0.73128213,105450.0,105440.0,0.001]
[1738257647812,0.663232,105450.0,105440.0,0.06905013]
[1738257648507,0.592672,105450.0,105440.0,0.06905013]
[1738257648712,0.620552,105450.0,105440.0,0.11235013]
[1738257649019,0.7335866,105450.0,105440.0,0.11235013]
[1738257652720,0.7335866,105450.0,105440.0,0.28272266]
[1738257653913,0.80163673,105450.0,105440.0,0.21467253]
[1738257654619,0.80215673,105450.0,105440.0,0.21467253]
[1738257655209,0.80215673,105450.0,105440.0,0.28272266]
[1738257655922,0.68912213,105450.0,105440.0,0.11235013]
[1738257656818,0.68912213,105450.0,105440.0,0.0443]
[1738257658523,0.191672,105450.0,105440.0,0.73089026]
[1738257658724,0.191672,105450.0,105440.0,0.81269026]
[1738257658910,0.002,105450.0,105440.0,0.81269026]
[1738257660424,0.191672,105450.0,105440.0,0.74464013]
[1738257661426,0.002,105450.0,105440.0,0.81269026]
[1738257662131,0.002,105450.0,105440.0,0.84097026]
[1738257664125,0.002,105450.0,105440.0,0.90902039]
[1738257664320,0.002,105450.0,105440.0,0.84097026]
[1738257665932,0.002,105450.0,105440.0,1.68919903]
[1738257668537,0.001,105450.0,105440.0,1.75724916]
[1738257668836,0.001,105450.0,105440.0,1.70734003]
[1738257669135,0.001,105450.0,105440.0,1.73570003]
[1738257669720,0.001,105450.0,105440.0,1.80375016]
[1738257669924,0.001,105450.0,105440.0,1.47588911]
[1738257671336,0.001,105450.0,105440.0,1.40783898]
[1738257671940,0.001,105450.0,105440.0,1.47588911]
[1738257674031,0.001,105450.0,105440.0,1.58883165]
[1738257675034,0.001,105450.0,105440.0,1.52090152]
[1738257675931,0.001,105450.0,105440.0,1.58895165]
[1738257676134,0.001,105450.0,105440.0,1.52090152]
[1738257676331,0.001,105450.0,105440.0,1.58895165]
[1738257676931,0.001,105450.0,105440.0,1.56047165]
[1738257677132,0.001,105450.0,105440.0,1.58895165]
[1738257679544,0.001,105450.0,105440.0,0.96528599]
[1738257683044,0.001,105450.0,105440.0,1.80406889]
[1738257686543,9.458e-05,105460.0,105450.0,0.189672]
[1738257686752,0.25386057,105480.0,105470.0,0.189636]
[1738257686953,0.25386057,105480.0,105470.0,1.11538639]
[1738257686954,0.05129016,105480.0,105470.0,1.11538639]
[1738257687453,0.16924038,105490.0,105480.0,0.189618]
[1738257687645,0.01374458,105490.0,105480.0,0.82258839]
[1738257687950,0.11271067,105490.0,105480.0,0.63297039]
[1738257688150,0.11271067,105490.0,105480.0,0.82258839]
[1738257688358,0.11271067,105490.0,105480.0,0.86999139]
[1738257688543,0.11371067,105490.0,105480.0,0.87287474]
[1738257689646,0.11371067,105490.0,105480.0,0.87387474]
[1738257690243,0.11271067,105490.0,105480.0,0.87387474]
[1738257690438,0.11371067,105490.0,105480.0,0.87387474]
[1738257691952,0.11371067,105490.0,105480.0,0.88370661]
[1738257692155,0.11371067,105490.0,105480.0,2.38370661]
[1738257692953,0.001,105490.0,105480.0,2.11425378]
[1738257693347,0.1,105500.0,105480.0,1.92463578]
[1738257693654,0.1,105500.0,105490.0,0.65391687]
[1738257694546,0.56531687,105500.0,105480.0,1.75049204]
[1738257694744,0.3111,105490.0,105480.0,1.37986017]
[1738257695253,0.3111,105490.0,105480.0,1.74066017]
[1738257696055,0.3111,105490.0,105480.0,1.84417704]
[1738257696965,0.289589,105500.0,105480.0,1.75808091]
[1738257697151,0.1,105500.0,105490.0,0.65391687]
[1738257697350,0.289582,105500.0,105490.0,0.65391687]
[1738257698850,0.289582,105500.0,105490.0,0.1896]
[1738257699454,0.1896,105490.0,105480.0,0.18961]
[1738257699651,0.2669,105490.0,105480.0,0.55041]
[1738257700254,0.2669,105490.0,105480.0,0.65392687]
[1738257700652,0.2669,105490.0,105480.0,0.65492687]
[1738257700848,0.2669,105490.0,105480.0,0.19061]
[1738257701052,0.73121687,105490.0,105480.0,0.001]
[1738257701856,0.6277,105490.0,105480.0,0.001]
[1738257703342,0.6277,105490.0,105480.0,0.190618]
[1738257704354,0.73121687,105490.0,105480.0,0.190618]
[1738257705758,0.73121687,105490.0,105480.0,0.001]
[1738257707646,0.75929687,105490.0,105480.0,0.001]
[1738257710464,0.80089687,105490.0,105480.0,0.001]
[1738257715865,0.71469374,105490.0,105460.0,0.22616698]
[1738257716064,0.189672,105450.0,105440.0,0.28270873]
[1738257716266,0.550472,105450.0,105440.0,0.28270873]
[1738257716465,0.189672,105450.0,105440.0,0.28270873]
[1738257716968,0.189672,105450.0,105440.0,0.47239873]
[1738257717469,0.189672,105450.0,105440.0,0.47639873]
[1738257718071,0.550472,105450.0,105440.0,0.47639873]
[1738257718663,0.65398887,105450.0,105440.0,0.47639873]
[1738257719061,0.550472,105450.0,105440.0,0.47639873]
[1738257719377,0.550472,105450.0,105440.0,0.47839873]
[1738257720366,0.68222887,105450.0,105440.0,0.47839873]
[1738257720574,0.78574574,105450.0,105440.0,0.28870873]
[1738257720868,1.14654574,105450.0,105440.0,0.006]
[1738257721556,0.189726,105420.0,105410.0,0.0414]
[1738257721755,0.65404287,105420.0,105410.0,0.0414]
[1738257722765,0.550511,105430.0,105420.0,0.189726]
[1738257722969,0.1898529,105430.0,105420.0,0.65404287]
[1738257723173,0.1898529,105430.0,105420.0,0.189726]
[1738257723670,0.1898529,105430.0,105420.0,0.550526]
[1738257723871,0.1898529,105430.0,105420.0,0.189726]
[1738257724065,0.1898529,105430.0,105420.0,0.551526]
[1738257724264,0.29336977,105430.0,105420.0,0.190726]
[1738257724861,0.1898529,105430.0,105420.0,0.190726]
[1738257725063,0.29336977,105430.0,105420.0,0.190726]
[1738257725269,0.29336977,105430.0,105420.0,0.589726]
[1738257727664,0.3054586,105430.0,105420.0,0.589726]
[1738257728065,0.3054586,105430.0,105420.0,0.4]
[1738257728267,0.3054586,105430.0,105420.0,0.0392]
[1738257728465,0.6662586,105430.0,105420.0,0.001]
[1738257728663,0.7059586,105430.0,105420.0,0.001]
[1738257728871,0.80947547,105430.0,105420.0,0.001]
[1738257729069,0.189744,105410.0,105400.0,0.0392419]
[1738257729266,0.29326087,105410.0,105400.0,0.0392419]
[1738257730264,0.29326087,105410.0,105400.0,0.0061419]
[1738257730472,0.65406087,105410.0,105400.0,0.0061419]
[1738257731373,0.65406087,105410.0,105400.0,0.0091419]
[1738257732676,0.65406087,105410.0,105400.0,0.0061419]
[1738257732970,0.65406087,105410.0,105400.0,9e-07]
[1738257733277,1.05757774,105410.0,105400.0,9e-07]
[1738257733475,0.95406087,105410.0,105400.0,9e-07]
[1738257734066,0.65406087,105410.0,105400.0,9e-07]
[1738257734270,0.75757774,105410.0,105400.0,9e-07]
[1738257734567,1.05757774,105410.0,105400.0,9e-07]
[1738257734972,0.86783374,105410.0,105390.0,0.0001419]
[1738257735179,0.82585574,105400.0,105390.0,9e-07]
[1738257736070,0.82585574,105400.0,105390.0,0.0010009]
[1738257736578,0.82585574,105400.0,105390.0,0.0030009]
[1738257738171,0.93609374,105400.0,105360.0,0.189832]
[1738257738372,0.46431687,105370.0,105350.0,1.29314712]
[1738257738573,0.29335087,105360.0,105350.0,1.29314712]
[1738257738883,0.29335087,105360.0,105350.0,0.67116731]
[1738257738884,0.189834,105360.0,105350.0,0.67116731]
[1738257739677,0.189834,105360.0,105350.0,0.68016731]
[1738257739876,0.189834,105360.0,105350.0,0.78368418]
[1738257740077,0.189834,105360.0,105350.0,0.77468418]
[1738257740278,0.190834,105360.0,105350.0,0.78368418]
[1738257741179,0.190834,105360.0,105350.0,0.78968418]
[1738257741566,0.001,105360.0,105350.0,0.78968418]
[1738257742173,0.001,105360.0,105350.0,0.81852418]
[1738257742374,0.001,105360.0,105350.0,2.31852418]
[1738257743680,0.001,105360.0,105350.0,0.81852418]
[1738257744277,0.001,105360.0,105350.0,0.78968418]
[1738257745181,0.001,105360.0,105350.0,0.78826087]
[1738257746180,0.0001419,105370.0,105360.0,0.189834]
[1738257746486,0.0001419,105370.0,105360.0,0.75766774]
[1738257747182,0.0001419,105370.0,105360.0,0.65415087]
[1738257747371,0.0001419,105370.0,105360.0,0.68783087]
[1738257748184,0.0011419,105370.0,105360.0,0.69683087]
[1738257749187,0.0011419,105370.0,105360.0,0.66815087]
[1738257749581,0.0011419,105370.0,105360.0,0.564634]
[1738257749984,0.1909579,105370.0,105360.0,0.564634]
[1738257751681,0.29447477,105370.0,105360.0,0.564634]
[1738257751880,0.1909579,105370.0,105360.0,0.564634]
[1738257752784,0.29292435,105370.0,105360.0,0.564634]
[1738257753183,0.29292435,105370.0,105360.0,0.014]
[1738257753491,0.65372435,105370.0,105360.0,0.014]
[1738257753691,0.73472435,105370.0,105360.0,0.014]
[1738257754885,0.73472435,105370.0,105360.0,0.008]
[1738257755085,0.73472435,105370.0,105360.0,0.003]
[1738257755295,0.73472435,105370.0,105360.0,0.004]
[1738257759789,0.74702581,105370.0,105360.0,0.004]
[1738257760989,0.85054268,105370.0,105360.0,0.004]
[1738257761193,0.189852,105350.0,105340.0,0.1900099]
[1738257761396,0.65416887,105350.0,105340.0,0.1900099]
[1738257761595,0.65416887,105350.0,105340.0,0.0001419]
[1738257762396,0.65416887,105350.0,105340.0,0.33941298]
[1738257762591,0.65516887,105350.0,105340.0,0.34741298]
[1738257763191,0.65416887,105350.0,105340.0,0.34841298]
[1738257763889,0.65416887,105350.0,105340.0,0.34741298]
[1738257764892,0.55416887,105350.0,105340.0,0.34741298]
[1738257765490,0.55416887,105350.0,105340.0,0.0081419]
[1738257767998,0.59156887,105350.0,105340.0,0.0081419]
[1738257769390,0.60344419,105350.0,105340.0,0.0081419]
[1738257771697,0.60344419,105350.0,105340.0,0.1980119]
[1738257771900,0.63184419,105350.0,105340.0,0.1980119]
[1738257772093,0.63184419,105350.0,105340.0,0.0081419]
[1738257773196,0.63184419,105350.0,105340.0,0.1980119]
[1738257774405,0.63184419,105350.0,105340.0,0.0081419]
[1738257776905,0.63168419,105350.0,105340.0,0.0081419]
[1738257778107,0.67148419,105350.0,105340.0,0.0081419]
[1738257781704,0.63408419,105350.0,105340.0,0.0071419]
[1738257781912,0.53056732,105350.0,105340.0,0.1930119]
[1738257782099,0.10172732,105350.0,105340.0,0.1930119]
[1738257782306,0.20524419,105350.0,105340.0,0.2704119]
[1738257782605,0.56604419,105350.0,105340.0,0.2704119]
[1738257783113,0.56604419,105350.0,105340.0,0.0031419]
[1738257783410,0.68224419,105350.0,105340.0,0.0031419]
[1738257785598,0.49072732,105350.0,105340.0,0.1930119]
[1738257785803,0.59424419,105350.0,105340.0,0.2704119]
[1738257786501,0.59424419,105350.0,105340.0,0.0805419]
[1738257788710,0.5507779,105360.0,105350.0,0.189852]
[1738257789014,0.0001419,105360.0,105350.0,0.33386887]
[1738257789216,0.0001419,105360.0,105350.0,0.69466887]
[1738257789516,0.1122523,105360.0,105350.0,0.69466887]
[1738257789813,0.1122523,105360.0,105350.0,0.591152]
[1738257790211,0.1122523,105360.0,105350.0,0.69466887]
[1738257790515,0.14059031,105370.0,105360.0,0.189834]
[1738257790710,0.14059031,105370.0,105360.0,0.29335087]
[1738257791902,0.14159031,105370.0,105360.0,0.65415087]
[1738257792105,0.14459031,105370.0,105360.0,0.75766774]
[1738257792311,0.14459031,105370.0,105360.0,0.65415087]
[1738257792511,0.14459031,105370.0,105360.0,0.75766774]
[1738257792712,0.14459031,105370.0,105360.0,0.78586774]
[1738257793103,0.14459031,105370.0,105360.0,0.68235087]
[1738257793305,0.14459031,105370.0,105360.0,0.78586774]
[1738257793617,0.004,105370.0,105360.0,0.78586774]
[1738257793916,0.004,105370.0,105360.0,0.82366774]
[1738257795108,0.0001419,105380.0,105370.0,0.189816]
[1738257795312,0.0001419,105380.0,105370.0,0.73483287]
[1738257796209,0.0021419,105380.0,105370.0,0.73483287]
[1738257797708,0.14059031,105390.0,105370.0,0.94953374]
[1738257797911,0.14059031,105390.0,105380.0,0.78571174]
[1738257798112,0.23096967,105410.0,105380.0,0.49239687]
[1738257798314,0.23096967,105410.0,105400.0,0.189762]
[1738257798518,0.19116967,105410.0,105400.0,0.29327887]
[1738257799419,0.00142367,105410.0,105400.0,0.37327887]
[1738257799612,0.34977047,105420.0,105400.0,0.54431687]
[1738257799822,0.30937047,105420.0,105410.0,0.65406087]
[1738257800025,0.30937047,105420.0,105410.0,0.69386087]
[1738257800413,0.60261334,105420.0,105410.0,0.189744]
[1738257800619,0.96341334,105420.0,105410.0,0.189744]
[1738257801328,0.97041334,105420.0,105410.0,0.190744]
[1738257801526,0.97041334,105420.0,105410.0,0.001]
[1738257802319,0.86689647,105420.0,105410.0,0.190744]
[1738257802528,0.5576679,105420.0,105410.0,0.190744]
[1738257803021,0.5576679,105420.0,105410.0,0.29426087]
[1738257804223,0.5576679,105420.0,105410.0,0.190744]
[1738257804421,0.66118477,105420.0,105410.0,0.190744]
[1738257804819,0.68926477,105420.0,105410.0,0.001]
[1738257808424,0.5857479,105420.0,105410.0,0.001]
[1738257808624,0.5857479,105420.0,105410.0,0.190744]
[1738257810326,0.5857479,105420.0,105410.0,0.001]
[1738257810524,0.5576679,105420.0,105410.0,0.190744]
[1738257810725,0.5855479,105420.0,105410.0,0.190744]
[1738257811119,0.5576679,105420.0,105410.0,0.190744]
[1738257811522,0.5855079,105420.0,105410.0,0.190744]
[1738257814120,0.5855079,105420.0,105410.0,0.29426087]
[1738257814317,0.5576679,105420.0,105410.0,0.29426087]
[1738257815831,0.5576679,105420.0,105410.0,0.190744]
[1738257816132,0.66118477,105420.0,105410.0,0.190744]
[1738257818331,0.69968477,105420.0,105410.0,0.190744]
[1738257819021,0.69968477,105420.0,105410.0,0.001]
[1738257819824,0.80320164,105420.0,105410.0,0.001]
[1738257820131,0.189762,105400.0,105390.0,0.41669966]
[1738257821023,0.189762,105400.0,105390.0,0.52021653]
[1738257821425,0.190762,105400.0,105390.0,0.52021653]
[1738257821629,0.195762,105400.0,105390.0,0.52021653]
[1738257823133,0.233062,105400.0,105390.0,0.1899129]
[1738257824434,0.233062,105400.0,105390.0,0.29342977]
[1738257826934,0.233062,105400.0,105390.0,1.79342977]
[1738257826935,0.24476833,105400.0,105390.0,1.79342977]
[1738257827633,0.20746833,105400.0,105390.0,0.29342977]
[1738257827942,0.006,105400.0,105390.0,0.65422977]
[1738257828125,0.006,105400.0,105390.0,0.69382977]
[1738257828333,0.006,105400.0,105390.0,0.79734664]
[1738257828525,0.09002347,105400.0,105390.0,0.69382977]
[1738257829035,0.09002347,105400.0,105390.0,0.79734664]
[1738257829444,0.09002347,105400.0,105390.0,0.69382977]
[1738257830944,0.09002347,105400.0,105390.0,0.82470664]
[1738257831937,0.09002347,105400.0,105390.0,0.83593292]
[1738257832444,0.006,105400.0,105390.0,1.91070469]
[1738257833443,0.006,105400.0,105390.0,1.80718782]
[1738257834036,0.006,105400.0,105390.0,1.77982782]
[1738257834336,0.006,105400.0,105390.0,1.80718782]
[1738257834942,0.006,105400.0,105390.0,1.91070469]
[1738257836438,0.006,105400.0,105390.0,1.80718782]
[1738257837346,0.006,105400.0,105390.0,1.46791674]
[1738257838349,0.229846,105410.0,105390.0,1.25078574]
[1738257838545,0.229846,105410.0,105400.0,0.65407887]
[1738257838739,0.189746,105410.0,105400.0,0.65407887]
[1738257838942,0.189746,105410.0,105400.0,0.73027887]
[1738257839645,0.194746,105410.0,105400.0,0.73027887]
[1738257839846,0.005,105410.0,105400.0,0.73027887]
[1738257840039,0.001,105410.0,105400.0,0.73027887]
[1738257840240,0.009,105410.0,105400.0,0.73127887]
[1738257840741,0.198744,105410.0,105400.0,0.73127887]
[1738257842150,0.197744,105410.0,105400.0,0.73127887]
[1738257843454,0.197744,105410.0,105400.0,0.69357887]
[1738257845152,0.28176747,105410.0,105400.0,1.09138957]
[1738257846754,0.28176747,105410.0,105400.0,1.05288957]
[1738257846951,0.31846747,105410.0,105400.0,1.05288957]
[1738257851944,0.31846747,105410.0,105400.0,0.69208957]
[1738257852545,0.31846747,105410.0,105400.0,1.05288957]
[1738257854057,0.234444,105410.0,105400.0,1.27523072]
[1738257855848,0.234444,105410.0,105400.0,1.17171385]
[1738257856155,0.271644,105410.0,105400.0,1.17171385]
[1738257856545,0.271644,105410.0,105400.0,1.27523072]
[1738257861356,0.271644,105410.0,105400.0,0.88275386]
[1738257861357,0.46848086,105410.0,105400.0,0.88275386]
[1738257862054,0.46848086,105410.0,105400.0,0.41843699]
[1738257862372,0.46848086,105410.0,105400.0,0.77923699]
[1738257864358,0.82928086,105410.0,105400.0,0.22867499]
[1738257864558,0.82928086,105410.0,105390.0,0.47573556]
[1738257864559,0.77041373,105410.0,105390.0,0.28429241]
[1738257864766,0.69227887,105400.0,105390.0,0.28429241]
[1738257865248,0.588762,105400.0,105390.0,0.47407241]
[1738257865453,0.588762,105400.0,105390.0,0.57758928]
[1738257865747,0.588762,105400.0,105390.0,0.81505302]
[1738257867160,0.592762,105400.0,105390.0,0.81505302]
[1738257868761,0.69627887,105400.0,105390.0,0.62527302]
[1738257870564,0.70757959,105400.0,105390.0,0.62527302]
[1738257870958,0.79160306,105400.0,105390.0,0.17067321]
[1738257873968,0.79160306,105400.0,105390.0,0.36045321]
[1738257875171,0.79160306,105400.0,105390.0,0.0001419]
[1738257875172,0.90441645,105400.0,105390.0,0.0001419]
[1738257876863,0.90441645,105400.0,105390.0,0.1899219]
[1738257877072,0.90441645,105400.0,105390.0,0.29343877]
[1738257877073,0.40189958,105400.0,105390.0,0.29343877]
[1738257877364,0.20083686,105400.0,105390.0,0.87465564]
[1738257877570,0.20083686,105400.0,105390.0,0.77113877]
[1738257881872,0.20083686,105400.0,105390.0,0.80996177]
[1738257882073,0.004,105400.0,105390.0,1.41354648]
[1738257882572,0.004,105400.0,105390.0,1.05274648]
[1738257882774,0.193762,105400.0,105390.0,1.02538648]
[1738257882967,0.193762,105400.0,105390.0,1.38618648]
[1738257883867,0.004,105400.0,105390.0,1.38618648]
[1738257885774,0.004,105400.0,105390.0,0.78260177]
[1738257890478,0.004,105400.0,105390.0,1.06675228]
[1738257892374,0.193762,105400.0,105390.0,1.06675228]
[1738257893483,0.004,105400.0,105390.0,1.06675228]
[1738257894180,0.193762,105400.0,105390.0,1.06675228]
[1738257895076,0.29727887,105400.0,105390.0,0.79261215]
[1738257895278,0.65807887,105400.0,105390.0,0.79261215]
[1738257896168,0.193762,105400.0,105390.0,0.79261215]
[1738257896675,0.193762,105400.0,105390.0,1.25692902]
[1738257897076,0.004,105400.0,105390.0,1.40094589]
[1738257897377,0.004,105400.0,105390.0,1.50856589]
[1738257898089,0.004,105400.0,105390.0,3.00856589]
[1738257898582,0.004,105400.0,105390.0,1.50856589]
[1738257899476,0.004,105400.0,105390.0,1.07632106]
[1738257900171,0.004,105400.0,105390.0,1.12632106]
[1738257900375,0.19683686,105410.0,105400.0,0.189762]
[1738257900679,0.19683686,105410.0,105400.0,0.65407887]
[1738257901876,0.19683686,105410.0,105400.0,0.65507887]
[1738257903589,0.19683686,105410.0,105400.0,0.65607887]
[1738257903974,0.19683686,105410.0,105400.0,0.70607887]
[1738257904180,0.14073221,105420.0,105410.0,0.29326087]
[1738257904389,0.14073221,105420.0,105410.0,0.76128087]
[1738257904779,0.0001419,105420.0,105410.0,0.76128087]
[1738257905881,0.19857056,105440.0,105430.0,0.189708]
[1738257906072,0.19857056,105440.0,105430.0,0.68134487]
[1738257906279,0.19857056,105440.0,105430.0,0.72044487]
[1738257908184,0.19857056,105440.0,105430.0,0.72144487]
[1738257908687,0.00142312,105440.0,105430.0,1.31952458]
[1738257908990,0.00142312,105440.0,105430.0,1.35742458]
[1738257909288,0.6780507,105460.0,105440.0,0.189676]
[1738257909487,0.1275877,105460.0,105450.0,0.65398887]
[1738257909691,0.69101631,105480.0,105450.0,0.59515374]
[1738257909884,0.44741631,105480.0,105470.0,0.29315287]
[1738257910281,0.44741631,105480.0,105460.0,0.65410577]
[1738257911076,0.44741631,105480.0,105470.0,0.3608]
[1738257911281,0.44741631,105480.0,105470.0,0.46431687]
[1738257912987,0.306826,105480.0,105470.0,0.46431687]
[1738257913388,0.306826,105480.0,105470.0,0.3608]
[1738257913890,0.306826,105480.0,105470.0,0.46431687]
[1738257915286,0.306826,105480.0,105470.0,0.65395287]
[1738257916096,0.268626,105480.0,105470.0,0.65395287]
[1738257917083,0.268626,105480.0,105470.0,0.68127287]
[1738257917280,0.039,105480.0,105470.0,0.68127287]
[1738257917598,0.508198,105500.0,105470.0,0.68127287]
[1738257917599,0.326789,105500.0,105490.0,0.1896]
[1738257917782,0.33754564,105500.0,105490.0,0.29311687]
[1738257917988,0.326789,105500.0,105490.0,0.29311687]
[1738257918186,0.326789,105500.0,105490.0,0.68123687]
[1738257918893,0.326789,105500.0,105490.0,0.68223687]
[1738257919093,0.1372,105500.0,105490.0,0.68223687]
[1738257919492,0.326782,105500.0,105490.0,0.68223687]
[1738257920091,0.1372,105500.0,105490.0,0.68223687]
[1738257920695,0.326782,105500.0,105490.0,0.68223687]
[1738257920996,0.326782,105500.0,105490.0,0.69301431]
[1738257921388,0.289582,105500.0,105490.0,0.69301431]
[1738257921588,0.1,105500.0,105490.0,0.69301431]
[1738257921792,0.1,105500.0,105490.0,0.66569431]
[1738257921990,0.289582,105500.0,105490.0,0.65491687]
[1738257922187,0.289582,105500.0,105490.0,0.32143687]
[1738257922387,0.289582,105500.0,105490.0,0.29411687]
[1738257922388,0.327582,105500.0,105490.0,0.29411687]
[1738257923392,0.327582,105500.0,105490.0,0.65491687]
[1738257924896,0.327582,105500.0,105490.0,0.29411687]
[1738257925097,0.327582,105500.0,105490.0,0.65491687]
[1738257927194,0.43109887,105500.0,105490.0,0.1906]
[1738257927392,0.327582,105500.0,105490.0,0.1906]
[1738257927596,0.327582,105500.0,105490.0,0.29411687]
[1738257928986,0.688382,105500.0,105490.0,0.29411687]
[1738257929188,0.79189887,105500.0,105490.0,0.001]
[1738257931006,0.81917887,105500.0,105490.0,0.001]
[1738257933617,0.94971287,105500.0,105460.0,0.395337]
[1738257933916,1.01475287,105470.0,105460.0,0.395337]
[1738257934116,1.04203287,105470.0,105460.0,0.395337]
[1738257934416,1.04203287,105470.0,105450.0,0.47332534]
[1738257934417,0.189654,105460.0,105450.0,0.585009]
[1738257934716,0.65397087,105460.0,105450.0,0.585009]
[1738257935012,0.65397087,105460.0,105450.0,0.395337]
[1738257935407,0.75748774,105460.0,105450.0,0.395337]
[1738257935607,0.65397087,105460.0,105450.0,0.396337]
[1738257935915,0.75748774,105460.0,105450.0,0.336137]
[1738257936116,0.65397087,105460.0,105450.0,0.336137]
[1738257937313,0.75748774,105460.0,105450.0,0.336137]
[1738257937512,0.75748774,105460.0,105450.0,0.335137]
[1738257937712,0.65397087,105460.0,105450.0,0.335137]
[1738257937915,0.65397087,105460.0,105450.0,0.334137]
[1738257938114,0.65497087,105460.0,105450.0,0.334137]
[1738257938609,0.84297518,105460.0,105450.0,0.001]
[1738257939812,0.83372524,105460.0,105450.0,0.001]
[1738257940021,0.47292524,105460.0,105450.0,0.001]
[1738257940217,0.34212837,105460.0,105450.0,0.190672]
[1738257940415,0.36944837,105460.0,105450.0,0.190672]
[1738257940717,0.34212837,105460.0,105450.0,0.190672]
[1738257941110,0.34212837,105460.0,105450.0,0.29418887]
[1738257941310,0.33124431,105460.0,105450.0,0.29418887]
[1738257941513,0.33124431,105460.0,105450.0,0.190672]
[1738257942219,0.69204431,105460.0,105450.0,0.190672]
[1738257942915,0.79556118,105460.0,105450.0,0.190672]
[1738257943215,0.65497087,105460.0,105450.0,0.001]
[1738257944120,0.75848774,105460.0,105450.0,0.001]
[1738257944421,0.189672,105450.0,105440.0,0.0001419]
[1738257944606,0.78482574,105450.0,105440.0,0.0001419]
[1738257944812,0.189708,105430.0,105420.0,0.2094413]
[1738257945018,1.01482487,105430.0,105420.0,0.1699413]
[1738257945316,1.04214487,105430.0,105420.0,0.1699413]
[1738257946418,1.04214487,105430.0,105420.0,0.1709413]
[1738257947323,1.04214487,105430.0,105420.0,0.001]
[1738257947919,1.04214487,105430.0,105420.0,0.002]
[1738257950420,0.65402487,105430.0,105420.0,0.002]
[1738257950615,0.577828,105430.0,105420.0,0.191726]
[1738257951122,0.577828,105430.0,105420.0,0.002]
[1738257951622,0.938628,105430.0,105420.0,0.002]
[1738257951819,0.94917377,105430.0,105420.0,0.002]
[1738257952521,1.05269064,105430.0,105420.0,0.002]
[1738257963620,1.05269064,105430.0,105410.0,0.0001419]
[1738257963621,0.189726,105420.0,105410.0,0.0001419]
[1738257963821,0.79635974,105420.0,105410.0,0.0001419]
[1738257964431,0.69284287,105420.0,105410.0,0.0001419]
[1738257964634,0.79635974,105420.0,105410.0,0.0001419]
[1738257964835,0.69284287,105420.0,105410.0,0.0001419]
[1738257965127,0.72016287,105420.0,105410.0,0.0001419]
[1738257965334,0.72016287,105420.0,105410.0,0.0041419]
[1738257966134,0.72016287,105420.0,105410.0,0.0061419]
[1738257966633,0.82367974,105420.0,105410.0,0.0061419]
[1738257970340,0.82367974,105420.0,105410.0,9e-07]
[1738257971026,0.189762,105400.0,105390.0,3e-07]
[1738257971229,0.189798,105380.0,105370.0,0.34098061]
[1738257971433,0.189798,105380.0,105370.0,0.29284435]
[1738257971434,1.04223487,105380.0,105370.0,0.29284435]
[1738257971626,1.11993487,105380.0,105370.0,0.29284435]
[1738257972133,1.11993487,105380.0,105360.0,0.00156537]
[1738257972134,0.189816,105370.0,105360.0,0.00156537]
[1738257972332,0.65413287,105370.0,105360.0,0.00156537]
[1738257972634,0.56783374,105370.0,105350.0,0.85045317]
[1738257972842,0.82538774,105360.0,105350.0,0.7391228]
[1738257973336,0.82538774,105360.0,105350.0,0.16027299]
[1738257973728,0.82538774,105360.0,105350.0,0.12095113]
[1738257974132,0.79806774,105360.0,105350.0,0.12095113]
[1738257974338,0.82538774,105360.0,105350.0,0.12095113]
[1738257974536,0.189852,105350.0,105340.0,0.0001419]
[1738257974735,0.189888,105330.0,105320.0,1.57821747]
[1738257975039,1.14584174,105330.0,105320.0,1.46371747]
[1738257976635,1.18324174,105330.0,105320.0,1.46671747]
[1738257976830,1.18324174,105330.0,105320.0,1.47571747]
[1738257977125,1.18424174,105330.0,105320.0,1.18960574]
[1738257977326,1.18424174,105330.0,105320.0,0.012]
[1738257977525,0.189906,105320.0,105310.0,0.0003419]
[1738257977740,0.69262287,105320.0,105310.0,0.0003419]
[1738257980541,0.69862287,105320.0,105310.0,0.0013419]
[1738257980946,0.71994287,105320.0,105310.0,0.0003419]
[1738257981242,0.72694287,105320.0,105310.0,0.0003419]
[1738257981434,0.69962287,105320.0,105310.0,0.0003419]
[1738257981636,0.72694287,105320.0,105310.0,0.0003419]
[1738257981835,0.72894287,105320.0,105310.0,0.0003419]
[1738257982534,0.66322287,105320.0,105310.0,0.1902659]
[1738257982733,0.587026,105320.0,105310.0,0.1902659]
[1738257983041,0.32974287,105320.0,105310.0,0.1902659]
[1738257983340,0.68954287,105320.0,105310.0,0.1912659]
[1738257984743,0.68954287,105320.0,105310.0,0.0013419]
[1738257986739,0.68954287,105320.0,105310.0,0.1912659]
[1738257986946,0.586026,105320.0,105310.0,0.29478277]
[1738257987530,0.558706,105320.0,105310.0,0.29478277]
[1738257988250,0.008,105320.0,105310.0,0.65558277]
[1738257988543,0.3608,105330.0,105320.0,0.189906]
[1738257988748,0.3608,105330.0,105320.0,0.36872287]
[1738257989638,0.46431687,105330.0,105320.0,0.265206]
[1738257989939,0.65720487,105330.0,105320.0,0.265206]
[1738257990846,0.65720487,105330.0,105320.0,0.266206]
[1738257991038,0.66520487,105330.0,105320.0,0.266206]
[1738257991647,0.66520487,105330.0,105320.0,0.302206]
[1738257992039,0.561688,105330.0,105320.0,0.302206]
[1738257992640,0.66520487,105330.0,105320.0,0.302206]
[1738257994539,0.561688,105330.0,105320.0,0.302206]
[1738257994940,0.66520487,105330.0,105320.0,0.302206]
[1738257995141,0.66520487,105330.0,105320.0,0.1123]
[1738257995741,0.76872174,105330.0,105320.0,0.0733]
[1738257995938,0.76872174,105330.0,105320.0,0.001]
[1738257999957,0.90931205,105330.0,105320.0,7.502e-05]
[1738258001854,0.93736,105330.0,105320.0,7.502e-05]
[1738258002654,0.747472,105330.0,105310.0,0.0003419]